Workbook

Sheet HIPOTECARIO
B2: SIMULADOR(*) HIPOTECARIO | X2: Sin devolución | Y2: Titular | Z2: 0.000299 | AB2: Con devolución | AC2: Titular | AD2: 0.000508
Y3: Titular + Conyugue | Z3: 0.000573 | AC3: Titular + Conyugue | AD3: 0.000974
B6: Monto del Bien | C6: 275000 | I6: Cuota Inicial (%) | J6: =IFERROR(C7/C6,"") -> 0.1090909091 | X6: Seguro | Y6: Seguro CSF | Z6: 0.00028
B7: Cuota Inicial | C7: 30000 | Y7: Endosado | Z7: 0
B8: Monto a Financiar | C8: =C6-C7 -> 245000 | I8: Plazo (Meses) | J8: 240 | K8: =IF(J8>300, "El plazo máximo es 300 meses","") -> 
B10: Fecha de Desembolso | C10: =TODAY() -> 2022-08-19 | I10: Cuotas simples y/o dobles | J10: Julio | K10: 1
B11: Fecha de 1era Cuota | C11: =EDATE(C10,1) -> 2022-09-19 | J11: Diciembre | K11: 1
B13: TEA | C13: 0.11 | I13: Seguro del Bien | J13: Seguro CSF | K13: =+VLOOKUP(J13,$Y$6:$Z$7,2,0) -> 0.00028 | M13: Seg. de Desgravamen | N13: Titular | O13: =IF(O14=1,VLOOKUP(N13,$AC$2:$AD$3,2,0),VLOOKUP(N13,$Y$2:$Z$3,2,0)) -> 0.000299
B14: TEA Total | C14: =(1+(((1+C13)^(30/360)-1)+O13))^12-1 -> 0.1139546371 | I14: Portes | J14: 0 | N14: 2 | O14: 2
B16: Valor Cuota | C16: =(C8+((K13*C6)+J14)*Q20)/P20 -> 2606.002525
B18: TCEA | C18: 0.1189585632 | J18: (*)La simulación de cuotas es un referencial, siendo un aproximado del valor real calculado en los cronogramas de BT
V19: =C8-V20 -> 0
P20: =SUM(P22:P383) -> 96.87613894 | Q20: =SUM(Q22:Q383) -> 96.87613894 | V20: =SUM(V22:V383) -> 245000
B21: N° Cuota | C21: Fecha de pago | D21: Día | E21: Fecha de pago | F21: Días | G21: Dias Acumulados | H21: Saldo Inicial | I21: Amortización | J21: Interés | K21: Seguro de Desgravamen | L21: Seguro del Bien | M21: Portes | N21: Cuota | O21: Saldo Final | P21: Factor Cronograma | Q21: Factor Cronograma 2 | S21: Vector i,1 Cuota | T21: Vector i,2 Días Acum | U21: Vector i,3 Factor | V21: Vector i,4 Calculo VA
B22: 1 | C22: =C11 -> 2022-09-19 | D22: =IF(B22<=$J$8,WEEKDAY(C22,2),"") -> 1 | E22: =IF(D22=7,C22+1,C22) -> 2022-09-19 | F22: =E22-C10 -> 31 | G22: =F22 -> 31 | H22: =C8 -> 245000 | I22: =IF(B22>J$8,"",N22-M22-L22-J22-K22) -> 241.676299 | J22: =IF(B22>J$8,"",((1+C$13)^(F22/360)-1)*H22) -> 2211.629015 | K22: =IF(B22>J$8,"",((1+O$13)^(F22/30)-1)*H22) -> 75.69721052 | L22: =IF(B22>J$8,"",C$6*K$13) -> 77 | M22: =IF(B22>J$8,"",J$14) -> 0 | N22: =IF(B22>J$8,"",IF(B22=J$8,H22+J22+L22+M22,IF(AND(K$10=2,MONTH(E22)=7),2*C$16,IF(AND(K$11=2,MONTH(E22)=12),2*C$16,C$16)))) -> 2606.002525 | O22: =IF(B22=J$8,0,IF(B22>J$8,"",H22-I22)) -> 244758.3237 | P22: =IFERROR(IF(AND(MONTH(E22)=7,K$10=2),2/(1+C$14)^(G22/360),IF(AND(MONTH(E22)=12,K$11=2),2/(1+C$14)^(G22/360),1/(1+C$14)^(G22/360))),"") -> 0.9907502418 | Q22: =IFERROR(1/(1+C$14)^(G22/360),"") -> 0.9907502418 | S22: =IFERROR(I22+J22+K22+L22+M22,"") -> 2606.002525 | T22: =G22 -> 31 | U22: =IFERROR((1+C$18)^(T22/360),"") -> 1.009725742 | V22: =IFERROR(ROUND(S22/U22,2),"") -> 2580.9
B23: =IF($J$8-B22=0,"",B22+1) -> 2 | C23: =IF(B23>$J$8,"",EDATE(C22,1)) -> 2022-10-19 | D23: 3 | E23: =IF(D23=7,C23+1,C23) -> 2022-10-19 | F23: =IF(B23>J$8,"",E23-E22) -> 30 | G23: =IFERROR(F23+G22,"") -> 61 | H23: =IF(B23>J$8,"",O22) -> 244758.3237 | I23: 317.9552438 | J23: 2137.864542 | K23: 73.18273879 | L23: 77 | M23: 0 | N23: 2606.002525 | O23: =IF(B23=J$8,0,IF(B23>J$8,"",H23-I23)) -> 244440.3685 | P23: 0.9818803337 | Q23: 0.9818803337 | S23: =IFERROR(I23+J23+K23+L23+M23,"") -> 2606.002525 | T23: =G23 -> 61 | U23: =IFERROR((1+C$18)^(T23/360),"") -> 1.019227802 | V23: =IFERROR(ROUND(S23/U23,2),"") -> 2556.84
B24: 3 | C24: 2022-11-19 | D24: 6 | E24: 2022-11-19 | F24: 31 | G24: 92 | H24: 244440.3685 | I24: 246.9010333 | J24: 2206.57719 | K24: 75.52430217 | L24: 77 | M24: 0 | N24: 2606.002525 | O24: 244193.4674 | P24: 0.9727981781 | Q24: 0.9727981781 | S24: 2606.002525 | T24: 92 | U24: =IFERROR((1+C$18)^(T24/360),"") -> 1.029140549 | V24: =IFERROR(ROUND(S24/U24,2),"") -> 2532.21
B25: 4 | C25: 2022-12-19 | D25: 1 | E25: 2022-12-19 | F25: 30 | G25: 122 | H25: 244193.4674 | I25: 323.0579259 | J25: 2132.930752 | K25: 73.01384676 | L25: 77 | M25: 0 | N25: 2606.002525 | O25: 243870.4095 | P25: 0.9640889897 | Q25: 0.9640889897 | S25: 2606.002525 | T25: 122 | U25: 1.038825313 | V25: 2508.61
B26: 5 | C26: 2023-01-19 | D26: 4 | E26: 2023-01-19 | F26: 31 | G26: 153 | H26: 243870.4095 | I26: 252.2221847 | J26: 2201.432137 | K26: 75.34820297 | L26: 77 | M26: 0 | N26: 2606.002525 | O26: 243618.1873 | P26: 0.9551713997 | Q26: 0.9551713997 | S26: 2606.002525 | T26: 153 | U26: 1.04892866 | V26: 2484.44
B27: 6 | C27: 2023-02-19 | D27: 7 | E27: 2023-02-20 | F27: 32 | G27: 185 | H27: 243618.1873 | I27: 180.8784204 | J27: 2270.42537 | K27: 77.69873486 | L27: 77 | M27: 0 | N27: 2606.002525 | O27: 243437.3089 | P27: 0.9460526566 | Q27: 0.9460526566 | S27: 2606.002525 | T27: 185 | U27: 1.059461 | V27: 2459.74
B28: 7 | C28: 2023-03-19 | D28: 7 | E28: 2023-03-20 | F28: 28 | G28: 213 | H28: 243437.3089 | I28: 477.0730443 | J28: 1983.994919 | K28: 67.93456132 | L28: 77 | M28: 0 | N28: 2606.002525 | O28: 242960.2358 | P28: 0.9381451963 | Q28: 0.9381451963 | S28: 2606.002525 | T28: 213 | U28: 1.068763514 | V28: 2438.33
B29: 8 | C29: 2023-04-19 | D29: 3 | E29: 2023-04-19 | F29: 30 | G29: 243 | H29: 242960.2358 | I29: 334.1984391 | J29: 2122.158975 | K29: 72.64511052 | L29: 77 | M29: 0 | N29: 2606.002525 | O29: 242626.0374 | P29: 0.9297462464 | Q29: 0.9297462464 | S29: 2606.002525 | T29: 243 | U29: 1.078821152 | V29: 2415.6
B30: 9 | C30: 2023-05-19 | D30: 5 | E30: 2023-05-19 | F30: 30 | G30: 273 | H30: 242626.0374 | I30: 337.217452 | J30: 2119.239888 | K30: 72.54518519 | L30: 77 | M30: 0 | N30: 2606.002525 | O30: 242288.82 | P30: 0.9214224898 | Q30: 0.9214224898 | S30: 2606.002525 | T30: 273 | U30: 1.088973438 | V30: 2393.08
B31: 10 | C31: 2023-06-19 | D31: 1 | E31: 2023-06-19 | F31: 31 | G31: 304 | H31: 242288.82 | I31: 266.9879448 | J31: 2187.155038 | K31: 74.85954209 | L31: 77 | M31: 0 | N31: 2606.002525 | O31: 242021.832 | P31: 0.9128995546 | Q31: 0.9128995546 | S31: 2606.002525 | T31: 304 | U31: 1.099564512 | V31: 2370.03
B32: 11 | C32: 2023-07-19 | D32: 3 | E32: 2023-07-19 | F32: 30 | G32: 334 | H32: 242021.832 | I32: 342.6755982 | J32: 2113.962399 | K32: 72.36452777 | L32: 77 | M32: 0 | N32: 2606.002525 | O32: 241679.1564 | P32: 0.9047266218 | Q32: 0.9047266218 | S32: 2606.002525 | T32: 334 | U32: 1.109912004 | V32: 2347.94
B33: 12 | C33: 2023-08-19 | D33: 6 | E33: 2023-08-19 | F33: 31 | G33: 365 | H33: 241679.1564 | I33: 272.6797791 | J33: 2181.65157 | K33: 74.67117543 | L33: 77 | M33: 0 | N33: 2606.002525 | O33: 241406.4766 | P33: 0.8963581194 | Q33: 0.8963581194 | S33: 2606.002525 | T33: 365 | U33: 1.120706721 | V33: 2325.32
B34: 13 | C34: 2023-09-19 | D34: 2 | E34: 2023-09-19 | F34: 31 | G34: 396 | H34: 241406.4766 | I34: 275.2255245 | J34: 2179.190074 | K34: 74.58692605 | L34: 77 | M34: 0 | N34: 2606.002525 | O34: 241131.2511 | P34: 0.8880670235 | Q34: 0.8880670235 | S34: 2606.002525 | T34: 396 | U34: 1.131606425 | V34: 2302.92
B35: 14 | C35: 2023-10-19 | D35: 4 | E35: 2023-10-19 | F35: 30 | G35: 426 | H35: 241131.2511 | I35: 350.7207443 | J35: 2106.183537 | K35: 72.09824408 | L35: 77 | M35: 0 | N35: 2606.002525 | O35: 240780.5304 | P35: 0.8801164094 | Q35: 0.8801164094 | S35: 2606.002525 | T35: 426 | U35: 1.142255449 | V35: 2281.45
B36: 15 | C36: 2023-11-19 | D36: 7 | E36: 2023-11-20 | F36: 32 | G36: 458 | H36: 240780.5304 | I36: 208.2292957 | J36: 2243.979527 | K36: 76.79370245 | L36: 77 | M36: 0 | N36: 2606.002525 | O36: 240572.3011 | P36: 0.8717141944 | Q36: 0.8717141944 | S36: 2606.002525 | T36: 458 | U36: 1.153724887 | V36: 2258.77
B37: 16 | C37: 2023-12-19 | D37: 2 | E37: 2023-12-19 | F37: 29 | G37: 487 | H37: 240572.3011 | I37: 428.506318 | J37: 2030.963139 | K37: 69.53306761 | L37: 77 | M37: 0 | N37: 2606.002525 | O37: 240143.7948 | P37: 0.8641689937 | Q37: 0.8641689937 | S37: 2606.002525 | T37: 487 | U37: 1.164218511 | V37: 2238.41
B38: 17 | C38: 2024-01-19 | D38: 5 | E38: 2024-01-19 | F38: 31 | G38: 518 | H38: 240143.7948 | I38: 287.0139546 | J38: 2167.791773 | K38: 74.1967975 | L38: 77 | M38: 0 | N38: 2606.002525 | O38: 239856.7808 | P38: 0.8561756395 | Q38: 0.8561756395 | S38: 2606.002525 | T38: 518 | U38: 1.175541399 | V38: 2216.85
B39: 18 | C39: 2024-02-19 | D39: 1 | E39: 2024-02-19 | F39: 31 | G39: 549 | H39: 239856.7808 | I39: 289.6935242 | J39: 2165.200882 | K39: 74.10811931 | L39: 77 | M39: 0 | N39: 2606.002525 | O39: 239567.0873 | P39: 0.8482562219 | Q39: 0.8482562219 | S39: 2606.002525 | T39: 549 | U39: 1.186974411 | V39: 2195.5
B40: 19 | C40: 2024-03-19 | D40: 2 | E40: 2024-03-19 | F40: 29 | G40: 578 | H40: 239567.0873 | I40: 437.2830881 | J40: 2022.476908 | K40: 69.24252877 | L40: 77 | M40: 0 | N40: 2606.002525 | O40: 239129.8042 | P40: 0.8409140638 | Q40: 0.8409140638 | S40: 2606.002525 | T40: 578 | U40: 1.197770453 | V40: 2175.71
B41: 20 | C41: 2024-04-19 | D41: 5 | E41: 2024-04-19 | F41: 31 | G41: 609 | H41: 239129.8042 | I41: 296.4805963 | J41: 2158.638422 | K41: 73.88350665 | L41: 77 | M41: 0 | N41: 2606.002525 | O41: 238833.3236 | P41: 0.8331358121 | Q41: 0.8331358121 | S41: 2606.002525 | T41: 609 | U41: 1.209419659 | V41: 2154.75
B42: 21 | C42: 2024-05-19 | D42: 7 | E42: 2024-05-20 | F42: 31 | G42: 640 | H42: 238833.3236 | I42: 299.2485467 | J42: 2155.962075 | K42: 73.79190357 | L42: 77 | M42: 0 | N42: 2606.002525 | O42: 238534.075 | P42: 0.8254295073 | Q42: 0.8254295073 | S42: 2606.002525 | T42: 640 | U42: 1.221182162 | V42: 2134
B43: 22 | C43: 2024-06-19 | D43: 3 | E43: 2024-06-19 | F43: 30 | G43: 670 | H43: 238534.075 | I43: 374.182578 | J43: 2083.498259 | K43: 71.32168844 | L43: 77 | M43: 0 | N43: 2606.002525 | O43: 238159.8925 | P43: 0.8180396692 | Q43: 0.8180396692 | S43: 2606.002525 | T43: 670 | U43: 1.232674142 | V43: 2114.1
B44: 23 | C44: 2024-07-19 | D44: 5 | E44: 2024-07-19 | F44: 30 | G44: 700 | H44: 238159.8925 | I44: 377.5627914 | J44: 2080.229926 | K44: 71.20980785 | L44: 77 | M44: 0 | N44: 2606.002525 | O44: 237782.3297 | P44: 0.8107159903 | Q44: 0.8107159903 | S44: 2606.002525 | T44: 700 | U44: 1.244274266 | V44: 2094.4
B45: 24 | C45: 2024-08-19 | D45: 1 | E45: 2024-08-19 | F45: 31 | G45: 731 | H45: 237782.3297 | I45: 309.0606526 | J45: 2146.474693 | K45: 73.46717987 | L45: 77 | M45: 0 | N45: 2606.002525 | O45: 237473.269 | P45: 0.8032170634 | Q45: 0.8032170634 | S45: 2606.002525 | T45: 731 | U45: 1.256375756 | V45: 2074.22
B46: 25 | C46: 2024-09-19 | D46: 4 | E46: 2024-09-19 | F46: 31 | G46: 762 | H46: 237473.269 | I46: 311.9460507 | J46: 2143.684784 | K46: 73.37168995 | L46: 77 | M46: 0 | N46: 2606.002525 | O46: 237161.323 | P46: 0.7957874998 | Q46: 0.7957874998 | S46: 2606.002525 | T46: 762 | U46: 1.268594942 | V46: 2054.24
B47: 26 | C47: 2024-10-19 | D47: 6 | E47: 2024-10-19 | F47: 30 | G47: 792 | H47: 237161.323 | I47: 386.5834626 | J47: 2071.507827 | K47: 70.91123557 | L47: 77 | M47: 0 | N47: 2606.002525 | O47: 236774.7395 | P47: 0.7886630382 | Q47: 0.7886630382 | S47: 2606.002525 | T47: 792 | U47: 1.280533101 | V47: 2035.09
B48: 27 | C48: 2024-11-19 | D48: 2 | E48: 2024-11-19 | F48: 31 | G48: 823 | H48: 236774.7395 | I48: 318.46754 | J48: 2137.379118 | K48: 73.15586654 | L48: 77 | M48: 0 | N48: 2606.002525 | O48: 236456.272 | P48: 0.7813680959 | Q48: 0.7813680959 | S48: 2606.002525 | T48: 823 | U48: 1.292987235 | V48: 2015.49
B49: 28 | C49: 2024-12-19 | D49: 4 | E49: 2024-12-19 | F49: 30 | G49: 853 | H49: 236456.272 | I49: 392.952607 | J49: 2065.349493 | K49: 70.70042532 | L49: 77 | M49: 0 | N49: 2606.002525 | O49: 236063.3194 | P49: 0.7743727272 | Q49: 0.7743727272 | S49: 2606.002525 | T49: 853 | U49: 1.305154939 | V49: 1996.7
B50: 29 | C50: 2025-01-19 | D50: 7 | E50: 2025-01-20 | F50: 32 | G50: 885 | H50: 236063.3194 | I50: 253.6963316 | J50: 2200.016982 | K50: 75.28921163 | L50: 77 | M50: 0 | N50: 2606.002525 | O50: 235809.623 | P50: 0.7669800163 | Q50: 0.7669800163 | S50: 2606.002525 | T50: 885 | U50: 1.318260058 | V50: 1976.85
B51: 30 | C51: 2025-02-19 | D51: 3 | E51: 2025-02-19 | F51: 30 | G51: 915 | H51: 235809.623 | I51: 398.7941709 | J51: 2059.701277 | K51: 70.50707729 | L51: 77 | M51: 0 | N51: 2606.002525 | O51: 235410.8289 | P51: 0.7601134601 | Q51: 0.7601134601 | S51: 2606.002525 | T51: 915 | U51: 1.330665593 | V51: 1958.42
B52: 31 | C52: 2025-03-19 | D52: 3 | E52: 2025-03-19 | F52: 28 | G52: 943 | H52: 235410.8289 | I52: 544.7281259 | J52: 1918.579738 | K52: 65.69466061 | L52: 77 | M52: 0 | N52: 2606.002525 | O52: 234866.1007 | P52: 0.7537601488 | Q52: 0.7537601488 | S52: 2606.002525 | T52: 943 | U52: 1.342349397 | V52: 1941.37
B53: 32 | C53: 2025-04-19 | D53: 6 | E53: 2025-04-19 | F53: 31 | G53: 974 | H53: 234866.1007 | I53: 336.2866401 | J53: 2120.149727 | K53: 72.56615784 | L53: 77 | M53: 0 | N53: 2606.002525 | O53: 234529.8141 | P53: 0.7467880497 | Q53: 0.7467880497 | S53: 2606.002525 | T53: 974 | U53: 1.355404741 | V53: 1922.67
B54: 33 | C54: 2025-05-19 | D54: 1 | E54: 2025-05-19 | F54: 30 | G54: 1004 | H54: 234529.8141 | I54: 410.355445 | J54: 2048.522666 | K54: 70.12441441 | L54: 77 | M54: 0 | N54: 2606.002525 | O54: 234119.4586 | P54: 0.7401022664 | Q54: 0.7401022664 | S54: 2606.002525 | T54: 1004 | U54: 1.368159826 | V54: 1904.75
B55: 34 | C55: 2025-06-19 | D55: 4 | E55: 2025-06-19 | F55: 31 | G55: 1035 | H55: 234119.4586 | I55: 343.2573096 | J55: 2113.409746 | K55: 72.33546918 | L55: 77 | M55: 0 | N55: 2606.002525 | O55: 233776.2013 | P55: 0.7332564995 | Q55: 0.7332564995 | S55: 2606.002525 | T55: 1035 | U55: 1.381466195 | V55: 1886.4
B56: 35 | C56: 2025-07-19 | D56: 6 | E56: 2025-07-19 | F56: 30 | G56: 1065 | H56: 233776.2013 | I56: 417.1632765 | J56: 2041.940164 | K56: 69.8990842 | L56: 77 | M56: 0 | N56: 2606.002525 | O56: 233359.0381 | P56: 0.7266918604 | Q56: 0.7266918604 | S56: 2606.002525 | T56: 1065 | U56: 1.394466533 | V56: 1868.82
B57: 36 | C57: 2025-08-19 | D57: 2 | E57: 2025-08-19 | F57: 31 | G57: 1096 | H57: 233359.0381 | I57: 350.3566155 | J57: 2106.545386 | K57: 72.10052339 | L57: 77 | M57: 0 | N57: 2606.002525 | O57: 233008.6814 | P57: 0.7199701364 | Q57: 0.7199701364 | S57: 2606.002525 | T57: 1096 | U57: 1.408028755 | V57: 1850.82
B58: 37 | C58: 2025-09-19 | D58: 5 | E58: 2025-09-19 | F58: 31 | G58: 1127 | H58: 233008.6814 | I58: 353.6275538 | J58: 2103.382697 | K58: 71.99227434 | L58: 77 | M58: 0 | N58: 2606.002525 | O58: 232655.0539 | P58: 0.7133105867 | Q58: 0.7133105867 | S58: 2606.002525 | T58: 1127 | U58: 1.421722878 | V58: 1832.99
B59: 38 | C59: 2025-10-19 | D59: 7 | E59: 2025-10-20 | F59: 31 | G59: 1158 | H59: 232655.0539 | I59: 356.9290296 | J59: 2100.190481 | K59: 71.88301466 | L59: 77 | M59: 0 | N59: 2606.002525 | O59: 232298.1249 | P59: 0.7067126363 | Q59: 0.7067126363 | S59: 2606.002525 | T59: 1158 | U59: 1.435550188 | V59: 1815.33
B60: 39 | C60: 2025-11-19 | D60: 3 | E60: 2025-11-19 | F60: 30 | G60: 1188 | H60: 232298.1249 | I60: 430.515619 | J60: 2029.029767 | K60: 69.45713933 | L60: 77 | M60: 0 | N60: 2606.002525 | O60: 231867.6092 | P60: 0.7003856369 | Q60: 0.7003856369 | S60: 2606.002525 | T60: 1188 | U60: 1.449059485 | V60: 1798.41
B61: 40 | C61: 2025-12-19 | D61: 5 | E61: 2025-12-19 | F61: 30 | G61: 1218 | H61: 231867.6092 | I61: 434.4047223 | J61: 2025.269388 | K61: 69.32841516 | L61: 77 | M61: 0 | N61: 2606.002525 | O61: 231433.2045 | P61: 0.6941152814 | Q61: 0.6941152814 | S61: 2606.002525 | T61: 1218 | U61: 1.462695912 | V61: 1781.64
B62: 41 | C62: 2026-01-19 | D62: 1 | E62: 2026-01-19 | F62: 31 | G62: 1249 | H62: 231433.2045 | I62: 368.3362464 | J62: 2089.160777 | K62: 71.50550206 | L62: 77 | M62: 0 | N62: 2606.002525 | O62: 231064.8683 | P62: 0.6876948829 | Q62: 0.6876948829 | S62: 2606.002525 | T62: 1249 | U62: 1.476921715 | V62: 1764.48
B63: 42 | C63: 2026-02-19 | D63: 4 | E63: 2026-02-19 | F63: 31 | G63: 1280 | H63: 231064.8683 | I63: 371.7750429 | J63: 2085.835784 | K63: 71.39169787 | L63: 77 | M63: 0 | N63: 2606.002525 | O63: 230693.0932 | P63: 0.6813338716 | Q63: 0.6813338716 | S63: 2606.002525 | T63: 1280 | U63: 1.491285873 | V63: 1747.49
B64: 43 | C64: 2026-03-19 | D64: 4 | E64: 2026-03-19 | F64: 28 | G64: 1308 | H64: 230693.0932 | I64: 584.4938498 | J64: 1880.130564 | K64: 64.37811098 | L64: 77 | M64: 0 | N64: 2606.002525 | O64: 230108.5994 | P64: 0.6756390294 | Q64: 0.6756390294 | S64: 2606.002525 | T64: 1308 | U64: 1.504379992 | V64: 1732.28
B65: 44 | C65: 2026-04-19 | D65: 7 | E65: 2026-04-20 | F65: 32 | G65: 1340 | H65: 230108.5994 | I65: 311.0911496 | J65: 2144.521341 | K65: 73.39003401 | L65: 77 | M65: 0 | N65: 2606.002525 | O65: 229797.5082 | P65: 0.6691889004 | Q65: 0.6691889004 | S65: 2606.002525 | T65: 1340 | U65: 1.519485539 | V65: 1715.06
B66: 45 | C66: 2026-05-19 | D66: 2 | E66: 2026-05-19 | F66: 29 | G66: 1369 | H66: 229797.5082 | I66: 522.5836968 | J66: 1940.000019 | K66: 66.41880884 | L66: 77 | M66: 0 | N66: 2606.002525 | O66: 229274.9245 | P66: 0.6633966757 | Q66: 0.6633966757 | S66: 2606.002525 | T66: 1369 | U66: 1.533305913 | V66: 1699.6
B67: 46 | C67: 2026-06-19 | D67: 5 | E67: 2026-06-19 | F67: 31 | G67: 1400 | H67: 229274.9245 | I67: 388.4860032 | J67: 2069.67786 | K67: 70.83866216 | L67: 77 | M67: 0 | N67: 2606.002525 | O67: 228886.4385 | P67: 0.6572604169 | Q67: 0.6572604169 | S67: 2606.002525 | T67: 1400 | U67: 1.54821845 | V67: 1683.23
B68: 47 | C68: 2026-07-19 | D68: 7 | E68: 2026-07-20 | F68: 31 | G68: 1431 | H68: 228886.4385 | I68: 392.1129184 | J68: 2066.170974 | K68: 70.71863234 | L68: 77 | M68: 0 | N68: 2606.002525 | O68: 228494.3256 | P68: 0.6511809169 | Q68: 0.6511809169 | S68: 2606.002525 | T68: 1431 | U68: 1.563276023 | V68: 1667.01
B69: 48 | C69: 2026-08-19 | D69: 3 | E69: 2026-08-19 | F69: 30 | G69: 1461 | H69: 228494.3256 | I69: 464.8775964 | J69: 1995.805125 | K69: 68.31980336 | L69: 77 | M69: 0 | N69: 2606.002525 | O69: 228029.448 | P69: 0.6453510774 | Q69: 0.6453510774 | S69: 2606.002525 | T69: 1461 | U69: 1.577987289 | V69: 1651.47
B70: 49 | C70: 2026-09-19 | D70: 6 | E70: 2026-09-19 | F70: 31 | G70: 1492 | H70: 228029.448 | I70: 400.1138036 | J70: 2058.434872 | K70: 70.45384952 | L70: 77 | M70: 0 | N70: 2606.002525 | O70: 227629.3342 | P70: 0.639381736 | Q70: 0.639381736 | S70: 2606.002525 | T70: 1492 | U70: 1.593334385 | V70: 1635.57
B71: 50 | C71: 2026-10-19 | D71: 1 | E71: 2026-10-19 | F71: 30 | G71: 1522 | H71: 227629.3342 | I71: 472.6915774 | J71: 1988.249777 | K71: 68.06117093 | L71: 77 | M71: 0 | N71: 2606.002525 | O71: 227156.6426 | P71: 0.6336575313 | Q71: 0.6336575313 | S71: 2606.002525 | T71: 1522 | U71: 1.608328517 | V71: 1620.32
B72: 51 | C72: 2026-11-19 | D72: 4 | E72: 2026-11-19 | F72: 31 | G72: 1553 | H72: 227156.6426 | I72: 408.2623368 | J72: 2050.556008 | K72: 70.1841804 | L72: 77 | M72: 0 | N72: 2606.002525 | O72: 226748.3803 | P72: 0.6277963523 | Q72: 0.6277963523 | S72: 2606.002525 | T72: 1553 | U72: 1.623970704 | V72: 1604.71
B73: 52 | C73: 2026-12-19 | D73: 6 | E73: 2026-12-19 | F73: 30 | G73: 1583 | H73: 226748.3803 | I73: 480.6497572 | J73: 1980.555002 | K73: 67.79776571 | L73: 77 | M73: 0 | N73: 2606.002525 | O73: 226267.7305 | P73: 0.6221758683 | Q73: 0.6221758683 | S73: 2606.002525 | T73: 1583 | U73: 1.63925314 | V73: 1589.75
B74: 53 | C74: 2027-01-19 | D74: 2 | E74: 2027-01-19 | F74: 31 | G74: 1614 | H74: 226267.7305 | I74: 416.5612427 | J74: 2042.531747 | K74: 69.90953483 | L74: 77 | M74: 0 | N74: 2606.002525 | O74: 225851.1693 | P74: 0.6164208919 | Q74: 0.6164208919 | S74: 2606.002525 | T74: 1614 | U74: 1.655196092 | V74: 1574.44
B75: 54 | C75: 2027-02-19 | D75: 5 | E75: 2027-02-19 | F75: 31 | G75: 1645 | H75: 225851.1693 | I75: 420.4502691 | J75: 2038.771425 | K75: 69.78083065 | L75: 77 | M75: 0 | N75: 2606.002525 | O75: 225430.719 | P75: 0.6107191478 | Q75: 0.6107191478 | S75: 2606.002525 | T75: 1645 | U75: 1.671294102 | V75: 1559.27
B76: 55 | C76: 2027-03-19 | D76: 5 | E76: 2027-03-19 | F76: 28 | G76: 1673 | H76: 225430.719 | I76: 628.8503242 | J76: 1837.242628 | K76: 62.90957239 | L76: 77 | M76: 0 | N76: 2606.002525 | O76: 224801.8687 | P76: 0.6056145298 | Q76: 0.6056145298 | S76: 2606.002525 | T76: 1673 | U76: 1.685968768 | V76: 1545.7
B77: 56 | C77: 2027-04-19 | D77: 1 | E77: 2027-04-19 | F77: 31 | G77: 1704 | H77: 224801.8687 | I77: 430.2465661 | J77: 2029.299329 | K77: 69.45663013 | L77: 77 | M77: 0 | N77: 2606.002525 | O77: 224371.6221 | P77: 0.6000127418 | Q77: 0.6000127418 | S77: 2606.002525 | T77: 1704 | U77: 1.702366065 | V77: 1530.81
B78: 57 | C78: 2027-05-19 | D78: 3 | E78: 2027-05-19 | F78: 30 | G78: 1734 | H78: 224371.6221 | I78: 502.1204251 | J78: 1959.794985 | K78: 67.08711502 | L78: 77 | M78: 0 | N78: 2606.002525 | O78: 223869.5017 | P78: 0.5946409966 | Q78: 0.5946409966 | S78: 2606.002525 | T78: 1734 | U78: 1.718386242 | V78: 1516.54
B79: 58 | C79: 2027-06-19 | D79: 6 | E79: 2027-06-19 | F79: 31 | G79: 1765 | H79: 223869.5017 | I79: 438.951168 | J79: 2020.882799 | K79: 69.16855837 | L79: 77 | M79: 0 | N79: 2606.002525 | O79: 223430.5505 | P79: 0.5891407112 | Q79: 0.5891407112 | S79: 2606.002525 | T79: 1765 | U79: 1.735098823 | V79: 1501.93
B80: 59 | C80: 2027-07-19 | D80: 1 | E80: 2027-07-19 | F80: 30 | G80: 1795 | H80: 223430.5505 | I80: 510.6216836 | J80: 1951.575107 | K80: 66.80573461 | L80: 77 | M80: 0 | N80: 2606.002525 | O80: 222919.9289 | P80: 0.5838663002 | Q80: 0.5838663002 | S80: 2606.002525 | T80: 1795 | U80: 1.751427034 | V80: 1487.93
B81: 60 | C81: 2027-08-19 | D81: 4 | E81: 2027-08-19 | F81: 31 | G81: 1826 | H81: 222919.9289 | I81: 447.8164043 | J81: 2012.31095 | K81: 68.87517055 | L81: 77 | M81: 0 | N81: 2606.002525 | O81: 222472.1125 | P81: 0.5784656781 | Q81: 0.5784656781 | S81: 2606.002525 | T81: 1826 | U81: 1.76846096 | V81: 1473.6
B82: 61 | C82: 2027-09-19 | D82: 7 | E82: 2027-09-20 | F82: 32 | G82: 1858 | H82: 222472.1125 | I82: 384.6957488 | J82: 2073.352297 | K82: 70.95447951 | L82: 77 | M82: 0 | N82: 2606.002525 | O82: 222087.4167 | P82: 0.5729432348 | Q82: 0.5729432348 | S82: 2606.002525 | T82: 1858 | U82: 1.786218157 | V82: 1458.95
B83: 62 | C83: 2027-10-19 | D83: 2 | E83: 2027-10-19 | F83: 29 | G83: 1887 | H83: 222087.4167 | I83: 589.9024111 | J83: 1874.909767 | K83: 64.19034649 | L83: 77 | M83: 0 | N83: 2606.002525 | O83: 221497.5143 | P83: 0.567984073 | Q83: 0.567984073 | S83: 2606.002525 | T83: 1887 | U83: 1.802464578 | V83: 1445.8
B84: 63 | C84: 2027-11-19 | D84: 5 | E84: 2027-11-19 | F84: 31 | G84: 1918 | H84: 221497.5143 | I84: 461.0961028 | J84: 1999.470733 | K84: 68.43568967 | L84: 77 | M84: 0 | N84: 2606.002525 | O84: 221036.4182 | P84: 0.5627303577 | Q84: 0.5627303577 | S84: 2606.002525 | T84: 1918 | U84: 1.819994883 | V84: 1431.87
B85: 64 | C85: 2027-12-19 | D85: 7 | E85: 2027-12-20 | F85: 31 | G85: 1949 | H85: 221036.4182 | I85: 465.4009077 | J85: 1995.308392 | K85: 68.29322564 | L85: 77 | M85: 0 | N85: 2606.002525 | O85: 220571.0173 | P85: 0.557525238 | Q85: 0.557525238 | S85: 2606.002525 | T85: 1949 | U85: 1.837695683 | V85: 1418.08
B86: 65 | C86: 2028-01-19 | D86: =IF(B86<=$J$8,WEEKDAY(C86,2),"") -> 3 | E86: 2028-01-19 | F86: 30 | G86: 1979 | H86: 220571.0173 | I86: =IF(B86>J$8,"",N86-M86-L86-J86-K86) -> 536.4535456 | J86: =IF(B86>J$8,"",((1+C$13)^(F86/360)-1)*H86) -> 1926.598245 | K86: =IF(B86>J$8,"",((1+O$13)^(F86/30)-1)*H86) -> 65.95073417 | L86: =IF(B86>J$8,"",C$6*K$13) -> 77 | M86: =IF(B86>J$8,"",J$14) -> 0 | N86: =IF(B86>J$8,"",IF(B86=J$8,H86+J86+L86+M86,IF(AND(K$10=2,MONTH(E86)=7),2*C$16,IF(AND(K$11=2,MONTH(E86)=12),2*C$16,C$16)))) -> 2606.002525 | O86: 220034.5637 | P86: =IFERROR(IF(AND(MONTH(E86)=7,K$10=2),2/(1+C$14)^(G86/360),IF(AND(MONTH(E86)=12,K$11=2),2/(1+C$14)^(G86/360),1/(1+C$14)^(G86/360))),"") -> 0.5525338714 | Q86: =IFERROR(1/(1+C$14)^(G86/360),"") -> 0.5525338714 | S86: 2606.002525 | T86: =G86 -> 1979 | U86: =IFERROR((1+C$18)^(T86/360),"") -> 1.854989385 | V86: =IFERROR(ROUND(S86/U86,2),"") -> 1404.86
B87: 66 | C87: =IF(B87>$J$8,"",EDATE(C86,1)) -> 2028-02-19 | D87: 6 | E87: =IF(D87=7,C87+1,C87) -> 2028-02-19 | F87: =IF(B87>J$8,"",E87-E86) -> 31 | G87: =IFERROR(F87+G86,"") -> 2010 | H87: =IF(B87>J$8,"",O86) -> 220034.5637 | I87: 474.7542463 | J87: 1986.264594 | K87: 67.98368446 | L87: 77 | M87: 0 | N87: 2606.002525 | O87: =IF(B87=J$8,0,IF(B87>J$8,"",H87-I87)) -> 219559.8095 | P87: 0.5474230667 | Q87: 0.5474230667 | S87: =IFERROR(I87+J87+K87+L87+M87,"") -> 2606.002525 | T87: 2010 | U87: 1.873030533 | V87: 1391.33
B88: 67 | C88: 2028-03-19 | D88: 7 | E88: 2028-03-20 | F88: 30 | G88: 2040 | H88: 219559.8095 | I88: 545.588386 | J88: 1917.765756 | K88: 65.64838304 | L88: 77 | M88: 0 | N88: 2606.002525 | O88: 219014.2211 | P88: 0.5425221421 | Q88: 0.5425221421 | S88: 2606.002525 | T88: 2040 | U88: 1.890656755 | V88: 1378.36
B89: 68 | C89: 2028-04-19 | D89: 3 | E89: 2028-04-19 | F89: 30 | G89: 2070 | H89: 219014.2211 | I89: 550.5170099 | J89: 1913.000263 | K89: 65.48525211 | L89: 77 | M89: 0 | N89: 2606.002525 | O89: 218463.7041 | P89: 0.537665094 | Q89: 0.537665094 | S89: 2606.002525 | T89: 2070 | U89: 1.908448849 | V89: 1365.51
B90: 69 | C90: 2028-05-19 | D90: 5 | E90: 2028-05-19 | F90: 30 | G90: 2100 | H90: 218463.7041 | I90: 555.490157 | J90: 1908.191721 | K90: 65.32064753 | L90: 77 | M90: 0 | N90: 2606.002525 | O90: 217908.2139 | P90: 0.5328515297 | Q90: 0.5328515297 | S90: 2606.002525 | T90: 2100 | U90: 1.926408376 | V90: 1352.78
B91: 70 | C91: 2028-06-19 | D91: 1 | E91: 2028-06-19 | F91: 31 | G91: 2131 | H91: 217908.2139 | I91: 494.6059021 | J91: 1967.069913 | K91: 67.32670998 | L91: 77 | M91: 0 | N91: 2606.002525 | O91: 217413.608 | P91: 0.5279227819 | Q91: 0.5279227819 | S91: 2606.002525 | T91: 2131 | U91: 1.945144127 | V91: 1339.75
B92: 71 | C92: 2028-07-19 | D92: 3 | E92: 2028-07-19 | F92: 30 | G92: 2161 | H92: 217413.608 | I92: 564.9762982 | J92: 1899.019558 | K92: 65.0066688 | L92: 77 | M92: 0 | N92: 2606.002525 | O92: 216848.6317 | P92: 0.5231964378 | Q92: 0.5231964378 | S92: 2606.002525 | T92: 2161 | U92: 1.963448976 | V92: 1327.26
B93: 72 | C93: 2028-08-19 | D93: 6 | E93: 2028-08-19 | F93: 31 | G93: 2192 | H93: 216848.6317 | I93: 504.4981885 | J93: 1957.505004 | K93: 66.99933277 | L93: 77 | M93: 0 | N93: 2606.002525 | O93: 216344.1336 | P93: 0.5183569973 | Q93: 0.5183569973 | S93: 2606.002525 | T93: 2192 | U93: 1.982544974 | V93: 1314.47
B94: 73 | C94: 2028-09-19 | D94: 2 | E94: 2028-09-19 | F94: 31 | G94: 2223 | H94: 216344.1336 | I94: 509.2081964 | J94: 1952.95087 | K94: 66.84345887 | L94: 77 | M94: 0 | N94: 2606.002525 | O94: 215834.9254 | P94: 0.5135623204 | Q94: 0.5135623204 | S94: 2606.002525 | T94: 2223 | U94: 2.001826694 | V94: 1301.81
B95: 74 | C95: 2028-10-19 | D95: 4 | E95: 2028-10-19 | F95: 30 | G95: 2253 | H95: 215834.9254 | I95: 579.2374764 | J95: 1885.230406 | K95: 64.53464268 | L95: 77 | M95: 0 | N95: 2606.002525 | O95: 215255.6879 | P95: 0.5089645415 | Q95: 0.5089645415 | S95: 2606.002525 | T95: 2253 | U95: 2.020664957 | V95: 1289.68
B96: 75 | C96: 2028-11-19 | D96: 7 | E96: 2028-11-20 | F96: 32 | G96: 2285 | H96: 215255.6879 | I96: 454.2515594 | J96: 2006.098067 | K96: 68.65289823 | L96: 77 | M96: 0 | N96: 2606.002525 | O96: 214801.4363 | P96: 0.5041056052 | Q96: 0.5041056052 | S96: 2606.002525 | T96: 2285 | U96: 2.040954545 | V96: 1276.85
B97: 76 | C97: 2028-12-19 | D97: 2 | E97: 2028-12-19 | F97: 29 | G97: 2314 | H97: 214801.4363 | I97: 653.5181062 | J97: 1813.399953 | K97: 62.08446579 | L97: 77 | M97: 0 | N97: 2606.002525 | O97: 214147.9182 | P97: 0.4997422738 | Q97: 0.4997422738 | S97: 2606.002525 | T97: 2314 | U97: 2.059517903 | V97: 1265.35
B98: 77 | C98: 2029-01-19 | D98: 5 | E98: 2029-01-19 | F98: 31 | G98: 2345 | H98: 214147.9182 | I98: 529.7121186 | J98: 1933.125508 | K98: 66.16489815 | L98: 77 | M98: 0 | N98: 2606.002525 | O98: 213618.2061 | P98: 0.4951197786 | Q98: 0.4951197786 | S98: 2606.002525 | T98: 2345 | U98: 2.079548242 | V98: 1253.16
B99: 78 | C99: 2029-02-19 | D99: 1 | E99: 2029-02-19 | F99: 31 | G99: 2376 | H99: 213618.2061 | I99: 534.6575244 | J99: 1928.343767 | K99: 66.00123395 | L99: 77 | M99: 0 | N99: 2606.002525 | O99: 213083.5486 | P99: 0.4905400404 | Q99: 0.4905400404 | S99: 2606.002525 | T99: 2376 | U99: 2.099773391 | V99: 1241.09
B100: 79 | C100: 2029-03-19 | D100: 1 | E100: 2029-03-19 | F100: 28 | G100: 2404 | H100: 213083.5486 | I100: 732.9244416 | J100: 1736.61416 | K100: 59.46392302 | L100: 77 | M100: 0 | N100: 2606.002525 | O100: 212350.6241 | P100: 0.4864399242 | Q100: 0.4864399242 | S100: 2606.002525 | T100: 2404 | U100: 2.118210286 | V100: 1230.29
B101: 80 | C101: 2029-04-19 | D101: 4 | E101: 2029-04-19 | F101: 31 | G101: 2435 | H101: 212350.6241 | I101: 546.4917018 | J101: 1916.901232 | K101: 65.60959142 | L101: 77 | M101: 0 | N101: 2606.002525 | O101: 211804.1324 | P101: 0.4819404725 | Q101: 0.4819404725 | S101: 2606.002525 | T101: 2435 | U101: 2.138811452 | V101: 1218.43
B102: 81 | C102: 2029-05-19 | D102: 6 | E102: 2029-05-19 | F102: 30 | G102: 2465 | H102: 211804.1324 | I102: 615.6500225 | J102: 1850.023067 | K102: 63.3294356 | L102: 77 | M102: 0 | N102: 2606.002525 | O102: 211188.4824 | P102: 0.4776257951 | Q102: 0.4776257951 | S102: 2606.002525 | T102: 2465 | U102: 2.158938815 | V102: 1207.08
B103: 82 | C103: 2029-06-19 | D103: 2 | E103: 2029-06-19 | F103: 31 | G103: 2496 | H103: 211188.4824 | I103: 557.3414865 | J103: 1906.410512 | K103: 65.25052658 | L103: 77 | M103: 0 | N103: 2606.002525 | O103: 210631.1409 | P103: 0.473207872 | Q103: 0.473207872 | S103: 2606.002525 | T103: 2496 | U103: 2.179936096 | V103: 1195.45
B104: 83 | C104: 2029-07-19 | D104: 4 | E104: 2029-07-19 | F104: 30 | G104: 2526 | H104: 210631.1409 | I104: 626.2463513 | J104: 1839.777463 | K104: 62.97871114 | L104: 77 | M104: 0 | N104: 2606.002525 | O104: 210004.8946 | P104: 0.468971375 | Q104: 0.468971375 | S104: 2606.002525 | T104: 2526 | U104: 2.200450464 | V104: 1184.3
B105: 84 | C105: 2029-08-19 | D105: 7 | E105: 2029-08-20 | F105: 32 | G105: 2558 | H105: 210004.8946 | I105: 504.8615507 | J105: 1957.162746 | K105: 66.97822852 | L105: 77 | M105: 0 | N105: 2606.002525 | O105: 209500.033 | P105: 0.4644942419 | Q105: 0.4644942419 | S105: 2606.002525 | T105: 2558 | U105: 2.222545287 | V105: 1172.53
B106: 85 | C106: 2029-09-19 | D106: 3 | E106: 2029-09-19 | F106: 30 | G106: 2588 | H106: 209500.033 | I106: 636.4643207 | J106: 1829.897694 | K106: 62.64050987 | L106: 77 | M106: 0 | N106: 2606.002525 | O106: 208863.5687 | P106: 0.4603357557 | Q106: 0.4603357557 | S106: 2606.002525 | T106: 2588 | U106: 2.24346063 | V106: 1161.6
B107: 86 | C107: 2029-10-19 | D107: 5 | E107: 2029-10-19 | F107: 30 | G107: 2618 | H107: 208863.5687 | I107: 642.2138808 | J107: 1824.338437 | K107: 62.45020704 | L107: 77 | M107: 0 | N107: 2606.002525 | O107: 208221.3548 | P107: 0.4562144992 | Q107: 0.4562144992 | S107: 2606.002525 | T107: 2618 | U107: 2.264572798 | V107: 1150.77
B108: 87 | C108: 2029-11-19 | D108: 1 | E108: 2029-11-19 | F108: 31 | G108: 2649 | H108: 208221.3548 | I108: 585.0426651 | J108: 1879.626081 | K108: 64.33377849 | L108: 77 | M108: 0 | N108: 2606.002525 | O108: 207636.3122 | P108: 0.4519946254 | Q108: 0.4519946254 | S108: 2606.002525 | T108: 2649 | U108: 2.286597448 | V108: 1139.69
B109: 88 | C109: 2029-12-19 | D109: 3 | E109: 2029-12-19 | F109: 30 | G109: 2679 | H109: 207636.3122 | I109: 653.300418 | J109: 1813.61885 | K109: 62.08325733 | L109: 77 | M109: 0 | N109: 2606.002525 | O109: 206983.0117 | P109: 0.4479480447 | Q109: 0.4479480447 | S109: 2606.002525 | T109: 2679 | U109: 2.308115557 | V109: 1129.06
B110: 89 | C110: 2030-01-19 | D110: 6 | E110: 2030-01-19 | F110: 31 | G110: 2710 | H110: 206983.0117 | I110: 596.6038676 | J110: 1868.447488 | K110: 63.95116985 | L110: 77 | M110: 0 | N110: 2606.002525 | O110: 206386.4079 | P110: 0.4438046336 | Q110: 0.4438046336 | S110: 2606.002525 | T110: 2710 | U110: 2.330563692 | V110: 1118.19
B111: 90 | C111: 2030-02-19 | D111: 2 | E111: 2030-02-19 | F111: 31 | G111: 2741 | H111: 206386.4079 | I111: 602.1737764 | J111: 1863.06191 | K111: 63.76683822 | L111: 77 | M111: 0 | N111: 2606.002525 | O111: 205784.2341 | P111: 0.4396995481 | Q111: 0.4396995481 | S111: 2606.002525 | T111: 2741 | U111: 2.353230152 | V111: 1107.42
B112: 91 | C112: 2030-03-19 | D112: 2 | E112: 2030-03-19 | F112: 28 | G112: 2769 | H112: 205784.2341 | I112: 794.4502556 | J112: 1677.125321 | K112: 57.42694796 | L112: 77 | M112: 0 | N112: 2606.002525 | O112: 204989.7838 | P112: 0.4360243756 | Q112: 0.4360243756 | S112: 2606.002525 | T112: 2769 | U112: 2.373892505 | V112: 1097.78
B113: 92 | C113: 2030-04-19 | D113: 5 | E113: 2030-04-19 | F113: 31 | G113: 2800 | H113: 204989.7838 | I113: 615.2126939 | J113: 1850.454505 | K113: 63.3353258 | L113: 77 | M113: 0 | N113: 2606.002525 | O113: 204374.5711 | P113: 0.4319912556 | Q113: 0.4319912556 | S113: 2606.002525 | T113: 2800 | U113: 2.39698037 | V113: 1087.2
B114: 93 | C114: 2030-05-19 | D114: 7 | E114: 2030-05-20 | F114: 31 | G114: 2831 | H114: 204374.5711 | I114: 620.9563352 | J114: 1844.900945 | K114: 63.14524464 | L114: 77 | M114: 0 | N114: 2606.002525 | O114: 203753.6148 | P114: 0.4279954409 | Q114: 0.4279954409 | S114: 2606.002525 | T114: 2831 | U114: 2.420292781 | V114: 1076.73
B115: 94 | C115: 2030-06-19 | D115: 3 | E115: 2030-06-19 | F115: 30 | G115: 2861 | H115: 203753.6148 | I115: 688.3751288 | J115: 1779.705065 | K115: 60.92233083 | L115: 77 | M115: 0 | N115: 2606.002525 | O115: 203065.2397 | P115: 0.4241637182 | Q115: 0.4241637182 | S115: 2606.002525 | T115: 2861 | U115: 2.443069035 | V115: 1066.69
B116: 95 | C116: 2030-07-19 | D116: 5 | E116: 2030-07-19 | F116: 30 | G116: 2891 | H116: 203065.2397 | I116: 694.5936301 | J116: 1773.692388 | K116: 60.71650666 | L116: 77 | M116: 0 | N116: 2606.002525 | O116: 202370.646 | P116: 0.4203662998 | Q116: 0.4203662998 | S116: 2606.002525 | T116: 2891 | U116: 2.466059625 | V116: 1056.75
B117: 96 | C117: 2030-08-19 | D117: 1 | E117: 2030-08-19 | F117: 31 | G117: 2922 | H117: 202370.646 | I117: 639.6650308 | J117: 1826.811399 | K117: 62.5260955 | L117: 77 | M117: 0 | N117: 2606.002525 | O117: 201730.981 | P117: 0.4164780131 | Q117: 0.4164780131 | S117: 2606.002525 | T117: 2922 | U117: 2.490043883 | V117: 1046.57
B118: 97 | C118: 2030-09-19 | D118: 4 | E118: 2030-09-19 | F118: 31 | G118: 2953 | H118: 201730.981 | I118: 645.6369598 | J118: 1821.037106 | K118: 62.32845934 | L118: 77 | M118: 0 | N118: 2606.002525 | O118: 201085.3441 | P118: 0.4126256922 | Q118: 0.4126256922 | S118: 2606.002525 | T118: 2953 | U118: 2.514261407 | V118: 1036.49
B119: 98 | C119: 2030-10-19 | D119: 6 | E119: 2030-10-19 | F119: 30 | G119: 2983 | H119: 201085.3441 | I119: 712.4792029 | J119: 1756.398804 | K119: 60.12451787 | L119: 77 | M119: 0 | N119: 2606.002525 | O119: 200372.8649 | P119: 0.4089315705 | Q119: 0.4089315705 | S119: 2606.002525 | T119: 2983 | U119: 2.537921955 | V119: 1026.83
B120: 99 | C120: 2030-11-19 | D120: 2 | E120: 2030-11-19 | F120: 31 | G120: 3014 | H120: 200372.8649 | I120: 658.3163668 | J120: 1808.777314 | K120: 61.90884463 | L120: 77 | M120: 0 | N120: 2606.002525 | O120: 199714.5485 | P120: 0.4051490524 | Q120: 0.4051490524 | S120: 2606.002525 | T120: 3014 | U120: 2.562605128 | V120: 1016.93
B121: 100 | C121: 2030-12-19 | D121: 4 | E121: 2030-12-19 | F121: 30 | G121: 3044 | H121: 199714.5485 | I121: 724.8624133 | J121: 1744.425462 | K121: 59.71465 | L121: 77 | M121: 0 | N121: 2606.002525 | O121: 198989.6861 | P121: 0.4015218669 | Q121: 0.4015218669 | S121: 2606.002525 | T121: 3044 | U121: 2.586720617 | V121: 1007.45
B122: 101 | C122: 2031-01-19 | D122: 7 | E122: 2031-01-20 | F122: 32 | G122: 3076 | H122: 198989.6861 | I122: 611.0320992 | J122: 1854.505349 | K122: 63.46507635 | L122: 77 | M122: 0 | N122: 2606.002525 | O122: 198378.654 | P122: 0.3976886546 | Q122: 0.3976886546 | S122: 2606.002525 | T122: 3076 | U122: 2.612693996 | V122: 997.44
B123: 102 | C123: 2031-02-19 | D123: 3 | E123: 2031-02-19 | F123: 30 | G123: 3106 | H123: 198378.654 | I123: 736.9303417 | J123: 1732.756966 | K123: 59.31521754 | L123: 77 | M123: 0 | N123: 2606.002525 | O123: 197641.7236 | P123: 0.39412826 | Q123: 0.39412826 | S123: 2606.002525 | T123: 3106 | U123: 2.637280848 | V123: 988.14
B124: 103 | C124: 2031-03-19 | D124: 3 | E124: 2031-03-19 | F124: 28 | G124: 3134 | H124: 197641.7236 | I124: 863.083356 | J124: 1610.764502 | K124: 55.15466735 | L124: 77 | M124: 0 | N124: 2606.002525 | O124: 196778.6403 | P124: 0.3908339893 | Q124: 0.3908339893 | S124: 2606.002525 | T124: 3134 | U124: 2.660437285 | V124: 979.54
B125: 104 | C125: 2031-04-19 | D125: 6 | E125: 2031-04-19 | F125: 31 | G125: 3165 | H125: 196778.6403 | I125: 691.8721388 | J125: 1776.332043 | K125: 60.79834351 | L125: 77 | M125: 0 | N125: 2606.002525 | O125: 196086.7681 | P125: 0.3872188694 | Q125: 0.3872188694 | S125: 2606.002525 | T125: 3165 | U125: 2.686312011 | V125: 970.1
B126: 105 | C126: 2031-05-19 | D126: 1 | E126: 2031-05-19 | F126: 30 | G126: 3195 | H126: 196086.7681 | I126: 757.6343075 | J126: 1712.738274 | K126: 58.62994367 | L126: 77 | M126: 0 | N126: 2606.002525 | O126: 195329.1338 | P126: 0.3837522078 | Q126: 0.3837522078 | S126: 2606.002525 | T126: 3195 | U126: 2.711591648 | V126: 961.06
B127: 106 | C127: 2031-06-19 | D127: 4 | E127: 2031-06-19 | F127: 31 | G127: 3226 | H127: 195329.1338 | I127: 705.4047678 | J127: 1763.247265 | K127: 60.3504921 | L127: 77 | M127: 0 | N127: 2606.002525 | O127: 194623.7291 | P127: 0.3802025927 | Q127: 0.3802025927 | S127: 2606.002525 | T127: 3226 | U127: 2.737963887 | V127: 951.8
B128: 107 | C128: 2031-07-19 | D128: 6 | E128: 2031-07-19 | F128: 30 | G128: 3256 | H128: 194623.7291 | I128: 770.8508082 | J128: 1699.959222 | K128: 58.19249499 | L128: 77 | M128: 0 | N128: 2606.002525 | O128: 193852.8783 | P128: 0.3767987459 | Q128: 0.3767987459 | S128: 2606.002525 | T128: 3256 | U128: 2.763729596 | V128: 942.93
B129: 108 | C129: 2031-08-19 | D129: 2 | E129: 2031-08-19 | F129: 31 | G129: 3287 | H129: 193852.8783 | I129: 719.1871274 | J129: 1749.921022 | K129: 59.89437606 | L129: 77 | M129: 0 | N129: 2606.002525 | O129: 193133.6911 | P129: 0.3733134486 | Q129: 0.3733134486 | S129: 2606.002525 | T129: 3287 | U129: 2.790608916 | V129: 933.85
B130: 109 | C130: 2031-09-19 | D130: 5 | E130: 2031-09-19 | F130: 31 | G130: 3318 | H130: 193133.6911 | I130: 725.9014767 | J130: 1743.428878 | K130: 59.6721701 | L130: 77 | M130: 0 | N130: 2606.002525 | O130: 192407.7897 | P130: 0.3698603895 | Q130: 0.3698603895 | S130: 2606.002525 | T130: 3318 | U130: 2.817749657 | V130: 924.85
B131: 110 | C131: 2031-10-19 | D131: 7 | E131: 2031-10-20 | F131: 31 | G131: 3349 | H131: 192407.7897 | I131: 732.6785113 | J131: 1736.876124 | K131: 59.44788963 | L131: 77 | M131: 0 | N131: 2606.002525 | O131: 191675.1111 | P131: 0.3664392703 | Q131: 0.3664392703 | S131: 2606.002525 | T131: 3349 | U131: 2.845154362 | V131: 915.94
B132: 111 | C132: 2031-11-19 | D132: 3 | E132: 2031-11-19 | F132: 30 | G132: 3379 | H132: 191675.1111 | I132: 797.4874249 | J132: 1674.204242 | K132: 57.31085823 | L132: 77 | M132: 0 | N132: 2606.002525 | O132: 190877.6237 | P132: 0.3631586427 | Q132: 0.3631586427 | S132: 2606.002525 | T132: 3379 | U132: 2.871928791 | V132: 907.4
B133: 112 | C133: 2031-12-19 | D133: 5 | E133: 2031-12-19 | F133: 30 | G133: 3409 | H133: 190877.6237 | I133: 804.6916024 | J133: 1667.238513 | K133: 57.07240949 | L133: 77 | M133: 0 | N133: 2606.002525 | O133: 190072.9321 | P133: 0.3599073855 | Q133: 0.3599073855 | S133: 2606.002525 | T133: 3409 | U133: 2.898955182 | V133: 898.95
B134: 113 | C134: 2032-01-19 | D134: 1 | E134: 2032-01-19 | F134: 31 | G134: 3440 | H134: 190072.9321 | I134: 754.4768006 | J134: 1715.799231 | K134: 58.72649288 | L134: 77 | M134: 0 | N134: 2606.002525 | O134: 189318.4553 | P134: 0.3565783292 | Q134: 0.3565783292 | S134: 2606.002525 | T134: 3440 | U134: 2.927149671 | V134: 890.29
B135: 114 | C135: 2032-02-19 | D135: 4 | E135: 2032-02-19 | F135: 31 | G135: 3471 | H135: 189318.4553 | I135: 761.5206152 | J135: 1708.988526 | K135: 58.49338354 | L135: 77 | M135: 0 | N135: 2606.002525 | O135: 188556.9347 | P135: 0.3532800659 | Q135: 0.3532800659 | S135: 2606.002525 | T135: 3471 | U135: 2.955618372 | V135: 881.71
B136: 115 | C136: 2032-03-19 | D136: 5 | E136: 2032-03-19 | F136: 29 | G136: 3500 | H136: 188556.9347 | I136: 882.665335 | J136: 1591.838222 | K136: 54.4989678 | L136: 77 | M136: 0 | N136: 2606.002525 | O136: 187674.2694 | P136: 0.3502222185 | Q136: 0.3502222185 | S136: 2606.002525 | T136: 3500 | U136: 2.982500991 | V136: 873.76
B137: 116 | C137: 2032-04-19 | D137: 1 | E137: 2032-04-19 | F137: 31 | G137: 3531 | H137: 187674.2694 | I137: 776.870777 | J137: 1694.146366 | K137: 57.98538235 | L137: 77 | M137: 0 | N137: 2606.002525 | O137: 186897.3986 | P137: 0.3469827477 | Q137: 0.3469827477 | S137: 2606.002525 | T137: 3531 | U137: 3.011508025 | V137: 865.35
B138: 117 | C138: 2032-05-19 | D138: 3 | E138: 2032-05-19 | F138: 30 | G138: 3561 | H138: 186897.3986 | I138: 840.6473395 | J138: 1632.472863 | K138: 55.88232218 | L138: 77 | M138: 0 | N138: 2606.002525 | O138: 186056.7512 | P138: 0.3438763088 | Q138: 0.3438763088 | S138: 2606.002525 | T138: 3561 | U138: 3.039847931 | V138: 857.28
B139: 118 | C139: 2032-06-19 | D139: 6 | E139: 2032-06-19 | F139: 31 | G139: 3592 | H139: 186056.7512 | I139: 791.9719673 | J139: 1679.544937 | K139: 57.48562068 | L139: 77 | M139: 0 | N139: 2606.002525 | O139: 185264.7793 | P139: 0.3406955361 | Q139: 0.3406955361 | S139: 2606.002525 | T139: 3592 | U139: 3.069412706 | V139: 849.02
B140: 119 | C140: 2032-07-19 | D140: 1 | E140: 2032-07-19 | F140: 30 | G140: 3622 | H140: 185264.7793 | I140: 855.3957592 | J140: 1618.212597 | K140: 55.394169 | L140: 77 | M140: 0 | N140: 2606.002525 | O140: 184409.3835 | P140: 0.3376453848 | Q140: 0.3376453848 | S140: 2606.002525 | T140: 3622 | U140: 3.098297527 | V140: 841.11
B141: 120 | C141: 2032-08-19 | D141: 4 | E141: 2032-08-19 | F141: 31 | G141: 3653 | H141: 184409.3835 | I141: 807.3518342 | J141: 1664.674054 | K141: 56.97663643 | L141: 77 | M141: 0 | N141: 2606.002525 | O141: 183602.0317 | P141: 0.3345222467 | Q141: 0.3345222467 | S141: 2606.002525 | T141: 3653 | U141: 3.128430768 | V141: 833.01
B142: 121 | C142: 2032-09-19 | D142: 7 | E142: 2032-09-20 | F142: 32 | G142: 3685 | H142: 183602.0317 | I142: 759.3466507 | J142: 1711.098483 | K142: 58.55739153 | L142: 77 | M142: 0 | N142: 2606.002525 | O142: 182842.685 | P142: 0.3313286602 | Q142: 0.3313286602 | S142: 2606.002525 | T142: 3685 | U142: 3.159843482 | V142: 824.73
B143: 122 | C143: 2032-10-19 | D143: 2 | E143: 2032-10-19 | F143: 29 | G143: 3714 | H143: 182842.685 | I143: 932.5578609 | J143: 1543.597297 | K143: 52.8473674 | L143: 77 | M143: 0 | N143: 2606.002525 | O143: 181910.1272 | P143: 0.3284608152 | Q143: 0.3284608152 | S143: 2606.002525 | T143: 3714 | U143: 3.188583617 | V143: 817.29
B144: 123 | C144: 2032-11-19 | D144: 5 | E144: 2032-11-19 | F144: 31 | G144: 3745 | H144: 181910.1272 | I144: 830.684955 | J144: 1642.113124 | K144: 56.20444568 | L144: 77 | M144: 0 | N144: 2606.002525 | O144: 181079.4422 | P144: 0.3254226321 | Q144: 0.3254226321 | S144: 2606.002525 | T144: 3745 | U144: 3.219594957 | V144: 809.42
B145: 124 | C145: 2032-12-19 | D145: 7 | E145: 2032-12-20 | F145: 31 | G145: 3776 | H145: 181079.4422 | I145: 838.4402508 | J145: 1634.614484 | K145: 55.94779044 | L145: 77 | M145: 0 | N145: 2606.002525 | O145: 180241.002 | P145: 0.3224125514 | Q145: 0.3224125514 | S145: 2606.002525 | T145: 3776 | U145: 3.250907905 | V145: 801.62
B146: 125 | C146: 2033-01-19 | D146: 3 | E146: 2033-01-19 | F146: 30 | G146: 3806 | H146: 180241.002 | I146: 900.7785229 | J146: 1574.331943 | K146: 53.89205959 | L146: 77 | M146: 0 | N146: 2606.002525 | O146: 179340.2234 | P146: 0.3195260826 | Q146: 0.3195260826 | S146: 2606.002525 | T146: 3806 | U146: 3.281500693 | V146: 794.15
B147: 126 | C147: 2033-02-19 | D147: 6 | E147: 2033-02-19 | F147: 31 | G147: 3837 | H147: 179340.2234 | I147: 854.6776415 | J147: 1618.914456 | K147: 55.41042714 | L147: 77 | M147: 0 | N147: 2606.002525 | O147: 178485.5458 | P147: 0.3165705436 | Q147: 0.3165705436 | S147: 2606.002525 | T147: 3837 | U147: 3.31341572 | V147: 786.5
B148: 127 | C148: 2033-03-19 | D148: 6 | E148: 2033-03-19 | F148: 28 | G148: 3865 | H148: 178485.5458 | I148: 1024.550496 | J148: 1454.643159 | K148: 49.80886993 | L148: 77 | M148: 0 | N148: 2606.002525 | O148: 177460.9953 | P148: 0.3139245292 | Q148: 0.3139245292 | S148: 2606.002525 | T148: 3865 | U148: 3.342508907 | V148: 779.65
B149: 128 | C149: 2033-04-19 | D149: 2 | E149: 2033-04-19 | F149: 31 | G149: 3896 | H149: 177460.9953 | I149: 872.2221632 | J149: 1601.950556 | K149: 54.82980539 | L149: 77 | M149: 0 | N149: 2606.002525 | O149: 176588.7731 | P149: 0.3110208032 | Q149: 0.3110208032 | S149: 2606.002525 | T149: 3896 | U149: 3.375017284 | V149: 772.14
B150: 129 | C150: 2033-05-19 | D150: =IF(B150<=$J$8,WEEKDAY(C150,2),"") -> 4 | E150: 2033-05-19 | F150: 30 | G150: 3926 | H150: 176588.7731 | I150: =IF(B150>J$8,"",N150-M150-L150-J150-K150) -> 933.7712746 | J150: =IF(B150>J$8,"",((1+C$13)^(F150/360)-1)*H150) -> 1542.431207 | K150: =IF(B150>J$8,"",((1+O$13)^(F150/30)-1)*H150) -> 52.80004317 | L150: =IF(B150>J$8,"",C$6*K$13) -> 77 | M150: =IF(B150>J$8,"",J$14) -> 0 | N150: =IF(B150>J$8,"",IF(B150=J$8,H150+J150+L150+M150,IF(AND(K$10=2,MONTH(E150)=7),2*C$16,IF(AND(K$11=2,MONTH(E150)=12),2*C$16,C$16)))) -> 2606.002525 | O150: 175655.0019 | P150: =IFERROR(IF(AND(MONTH(E150)=7,K$10=2),2/(1+C$14)^(G150/360),IF(AND(MONTH(E150)=12,K$11=2),2/(1+C$14)^(G150/360),1/(1+C$14)^(G150/360))),"") -> 0.3082363215 | Q150: =IFERROR(1/(1+C$14)^(G150/360),"") -> 0.3082363215 | S150: 2606.002525 | T150: =G150 -> 3926 | U150: =IFERROR((1+C$18)^(T150/360),"") -> 3.406778008 | V150: =IFERROR(ROUND(S150/U150,2),"") -> 764.95
B151: 130 | C151: =IF(B151>$J$8,"",EDATE(C150,1)) -> 2033-06-19 | D151: 7 | E151: =IF(D151=7,C151+1,C151) -> 2033-06-20 | F151: =IF(B151>J$8,"",E151-E150) -> 32 | G151: =IFERROR(F151+G150,"") -> 3958 | H151: =IF(B151>J$8,"",O150) -> 175655.0019 | I151: 835.9444306 | J151: 1637.035301 | K151: 56.02279357 | L151: 77 | M151: 0 | N151: 2606.002525 | O151: =IF(B151=J$8,0,IF(B151>J$8,"",H151-I151)) -> 174819.0574 | P151: 0.3052936791 | Q151: 0.3052936791 | S151: =IFERROR(I151+J151+K151+L151+M151,"") -> 2606.002525 | T151: 3958 | U151: 3.440985619 | V151: 757.34
B152: 131 | C152: 2033-07-19 | D152: 2 | E152: 2033-07-19 | F152: 29 | G152: 3987 | H152: 174819.0574 | I152: 1002.614136 | J152: 1475.860106 | K152: 50.52828313 | L152: 77 | M152: 0 | N152: 2606.002525 | O152: 173816.4433 | P152: 0.3026511822 | Q152: 0.3026511822 | S152: 2606.002525 | T152: 3987 | U152: 3.472282862 | V152: 750.52
B153: 132 | C153: 2033-08-19 | D153: 5 | E153: 2033-08-19 | F153: 31 | G153: 4018 | H153: 173816.4433 | I153: 906.2477933 | J153: 1569.050977 | K153: 53.7037547 | L153: 77 | M153: 0 | N153: 2606.002525 | O153: 172910.1955 | P153: 0.2998517319 | Q153: 0.2998517319 | S153: 2606.002525 | T153: 4018 | U153: 3.506053388 | V153: 743.29
B154: 133 | C154: 2033-09-19 | D154: 1 | E154: 2033-09-19 | F154: 31 | G154: 4049 | H154: 172910.1955 | I154: 914.7085457 | J154: 1560.870226 | K154: 53.42375294 | L154: 77 | M154: 0 | N154: 2606.002525 | O154: 171995.487 | P154: 0.2970781759 | Q154: 0.2970781759 | S154: 2606.002525 | T154: 4049 | U154: 3.540152357 | V154: 736.13
B155: 134 | C155: 2033-10-19 | D155: 3 | E155: 2033-10-19 | F155: 30 | G155: 4079 | H155: 171995.487 | I155: 975.2651563 | J155: 1502.310718 | K155: 51.4266506 | L155: 77 | M155: 0 | N155: 2606.002525 | O155: 171020.2218 | P155: 0.2944185186 | Q155: 0.2944185186 | S155: 2606.002525 | T155: 4079 | U155: 3.57346709 | V155: 729.26
B156: 135 | C156: 2033-11-19 | D156: 6 | E156: 2033-11-19 | F156: 31 | G156: 4110 | H156: 171020.2218 | I156: 932.3533882 | J156: 1543.809326 | K156: 52.83981116 | L156: 77 | M156: 0 | N156: 2606.002525 | O156: 170087.8684 | P156: 0.2916952185 | Q156: 0.2916952185 | S156: 2606.002525 | T156: 4110 | U156: 3.608221707 | V156: 722.24
B157: 136 | C157: 2033-12-19 | D157: 1 | E157: 2033-12-19 | F157: 30 | G157: 4140 | H157: 170087.8684 | I157: 992.4978074 | J157: 1485.648445 | K157: 50.85627266 | L157: 77 | M157: 0 | N157: 2606.002525 | O157: 169095.3706 | P157: 0.2890837533 | Q157: 0.2890837533 | S157: 2606.002525 | T157: 4140 | U157: 3.642177009 | V157: 715.51
B158: 137 | C158: 2034-01-19 | D158: 4 | E158: 2034-01-19 | F158: 31 | G158: 4171 | H158: 169095.3706 | I158: 950.3238479 | J158: 1526.433584 | K158: 52.24509333 | L158: 77 | M158: 0 | N158: 2606.002525 | O158: 168145.0468 | P158: 0.2864097985 | Q158: 0.2864097985 | S158: 2606.002525 | T158: 4171 | U158: 3.677599882 | V158: 708.62
B159: 138 | C159: 2034-02-19 | D159: 7 | E159: 2034-02-20 | F159: 32 | G159: 4203 | H159: 168145.0468 | I159: 908.3294475 | J159: 1567.045483 | K159: 53.62759468 | L159: 77 | M159: 0 | N159: 2606.002525 | O159: 167236.7173 | P159: 0.2836755276 | Q159: 0.2836755276 | S159: 2606.002525 | T159: 4203 | U159: 3.714526828 | V159: 701.57
B160: 139 | C160: 2034-03-19 | D160: 7 | E160: 2034-03-20 | F160: 28 | G160: 4231 | H160: 167236.7173 | I160: 1119.366705 | J160: 1362.966092 | K160: 46.66972815 | L160: 77 | M160: 0 | N160: 2606.002525 | O160: 166117.3506 | P160: 0.2813044619 | Q160: 0.2813044619 | S160: 2606.002525 | T160: 4231 | U160: 3.747141939 | V160: 695.46
B161: 140 | C161: 2034-04-19 | D161: 3 | E161: 2034-04-19 | F161: 30 | G161: 4261 | H161: 166117.3506 | I161: 1028.365853 | J161: 1450.967585 | K161: 49.66908783 | L161: 77 | M161: 0 | N161: 2606.002525 | O161: 165088.9848 | P161: 0.2787860222 | Q161: 0.2787860222 | S161: 2606.002525 | T161: 4261 | U161: 3.782404555 | V161: 688.98
B162: 141 | C162: 2034-05-19 | D162: 5 | E162: 2034-05-19 | F162: 30 | G162: 4291 | H162: 165088.9848 | I162: 1037.655692 | J162: 1441.985227 | K162: 49.36160644 | L162: 77 | M162: 0 | N162: 2606.002525 | O162: 164051.3291 | P162: 0.2762901294 | Q162: 0.2762901294 | S162: 2606.002525 | T162: 4291 | U162: 3.817999011 | V162: 682.56
B163: 142 | C163: 2034-06-19 | D163: 1 | E163: 2034-06-19 | F163: 31 | G163: 4322 | H163: 164051.3291 | I163: 997.415148 | J163: 1480.900732 | K163: 50.68664487 | L163: 77 | M163: 0 | N163: 2606.002525 | O163: 163053.9139 | P163: 0.2737345125 | Q163: 0.2737345125 | S163: 2606.002525 | T163: 4322 | U163: 3.855131882 | V163: 675.98
B164: 143 | C164: 2034-07-19 | D164: 3 | E164: 2034-07-19 | F164: 30 | G164: 4352 | H164: 163053.9139 | I164: 1056.039695 | J164: 1424.209709 | K164: 48.75312026 | L164: 77 | M164: 0 | N164: 2606.002525 | O164: 161997.8742 | P164: 0.2712838445 | Q164: 0.2712838445 | S164: 2606.002525 | T164: 4352 | U164: 3.891410741 | V164: 669.68
B165: 144 | C165: 2034-08-19 | D165: 6 | E165: 2034-08-19 | F165: 31 | G165: 4383 | H165: 161997.8742 | I165: 1016.586255 | J165: 1462.364078 | K165: 50.05219261 | L165: 77 | M165: 0 | N165: 2606.002525 | O165: 160981.288 | P165: 0.2687745345 | Q165: 0.2687745345 | S165: 2606.002525 | T165: 4383 | U165: 3.929257597 | V165: 663.23
B166: 145 | C166: 2034-09-19 | D166: 2 | E166: 2034-09-19 | F166: 31 | G166: 4414 | H166: 160981.288 | I166: 1026.07713 | J166: 1453.187296 | K166: 49.73809978 | L166: 77 | M166: 0 | N166: 2606.002525 | O166: 159955.2108 | P166: 0.2662884351 | Q166: 0.2662884351 | S166: 2606.002525 | T166: 4414 | U166: 3.967472541 | V166: 656.84
B167: 146 | C167: 2034-10-19 | D167: 4 | E167: 2034-10-19 | F167: 30 | G167: 4444 | H167: 159955.2108 | I167: 1084.03212 | J167: 1397.143797 | K167: 47.82660804 | L167: 77 | M167: 0 | N167: 2606.002525 | O167: 158871.1787 | P167: 0.2639044296 | Q167: 0.2639044296 | S167: 2606.002525 | T167: 4444 | U167: 4.004808586 | V167: 650.72
B168: 147 | C168: 2034-11-19 | D168: 7 | E168: 2034-11-20 | F168: 32 | G168: 4476 | H168: 158871.1787 | I168: 997.7160131 | J168: 1480.616692 | K168: 50.66981956 | L168: 77 | M168: 0 | N168: 2606.002525 | O168: 157873.4627 | P168: 0.2613850109 | Q168: 0.2613850109 | S168: 2606.002525 | T168: 4476 | U168: 4.045021049 | V168: 644.25
B169: 148 | C169: 2034-12-19 | D169: 2 | E169: 2034-12-19 | F169: 29 | G169: 4505 | H169: 157873.4627 | I169: 1150.570311 | J169: 1332.801748 | K169: 45.6304658 | L169: 77 | M169: 0 | N169: 2606.002525 | O169: 156722.8924 | P169: 0.2591225694 | Q169: 0.2591225694 | S169: 2606.002525 | T169: 4505 | U169: 4.081812254 | V169: 638.44
B170: 149 | C170: 2035-01-19 | D170: 5 | E170: 2035-01-19 | F170: 31 | G170: 4536 | H170: 156722.8924 | I170: 1065.833619 | J170: 1414.746515 | K170: 48.42239093 | L170: 77 | M170: 0 | N170: 2606.002525 | O170: 155657.0588 | P170: 0.2567257483 | Q170: 0.2567257483 | S170: 2606.002525 | T170: 4536 | U170: 4.121510905 | V170: 632.29
B171: 150 | C171: 2035-02-19 | D171: 1 | E171: 2035-02-19 | F171: 31 | G171: 4567 | H171: 155657.0588 | I171: 1075.784269 | J171: 1405.125174 | K171: 48.09308223 | L171: 77 | M171: 0 | N171: 2606.002525 | O171: 154581.2745 | P171: 0.2543510972 | Q171: 0.2543510972 | S171: 2606.002525 | T171: 4567 | U171: 4.161595655 | V171: 626.2
B172: 151 | C172: 2035-03-19 | D172: 1 | E172: 2035-03-19 | F172: 28 | G172: 4595 | H172: 154581.2745 | I172: 1226.039246 | J172: 1259.825228 | K172: 43.1380511 | L172: 77 | M172: 0 | N172: 2606.002525 | O172: 153355.2353 | P172: 0.2522251361 | Q172: 0.2522251361 | S172: 2606.002525 | T172: 4595 | U172: 4.198136219 | V172: 620.75
B173: 152 | C173: 2035-04-19 | D173: 4 | E173: 2035-04-19 | F173: 31 | G173: 4626 | H173: 153355.2353 | I173: 1097.274152 | J173: 1384.346482 | K173: 47.38189195 | L173: 77 | M173: 0 | N173: 2606.002525 | O173: 152257.9611 | P173: 0.2498921146 | Q173: 0.2498921146 | S173: 2606.002525 | T173: 4626 | U173: 4.238966206 | V173: 614.77
B174: 153 | C174: 2035-05-19 | D174: 6 | E174: 2035-05-19 | F174: 30 | G174: 4656 | H174: 152257.9611 | I174: 1153.565948 | J174: 1329.911447 | K174: 45.52513037 | L174: 77 | M174: 0 | N174: 2606.002525 | O174: 151104.3952 | P174: 0.2476549008 | Q174: 0.2476549008 | S174: 2606.002525 | T174: 4656 | U174: 4.278857152 | V174: 609.04
B175: 154 | C175: 2035-06-19 | D175: 2 | E175: 2035-06-19 | F175: 31 | G175: 4687 | H175: 151104.3952 | I175: 1118.288052 | J175: 1364.028019 | K175: 46.68645392 | L175: 77 | M175: 0 | N175: 2606.002525 | O175: 149986.1071 | P175: 0.2453641529 | Q175: 0.2453641529 | S175: 2606.002525 | T175: 4687 | U175: 4.320472211 | V175: 603.18
B176: 155 | C176: 2035-07-19 | D176: 4 | E176: 2035-07-19 | F176: 30 | G176: 4717 | H176: 149986.1071 | I176: 1174.088954 | J176: 1310.067725 | K176: 44.84584603 | L176: 77 | M176: 0 | N176: 2606.002525 | O176: 148812.0182 | P176: 0.2431674766 | Q176: 0.2431674766 | S176: 2606.002525 | T176: 4717 | U176: 4.361130173 | V176: 597.55
B177: 156 | C177: 2035-08-19 | D177: 7 | E177: 2035-08-20 | F177: 32 | G177: 4749 | H177: 148812.0182 | I177: 1094.671654 | J177: 1386.869285 | K177: 47.46158598 | L177: 77 | M177: 0 | N177: 2606.002525 | O177: 147717.3465 | P177: 0.2408460276 | Q177: 0.2408460276 | S177: 2606.002525 | T177: 4749 | U177: 4.404920477 | V177: 591.61
B178: 157 | C178: 2035-09-19 | D178: 3 | E178: 2035-09-19 | F178: 30 | G178: 4779 | H178: 147717.3465 | I178: 1194.584016 | J178: 1290.251022 | K178: 44.1674866 | L178: 77 | M178: 0 | N178: 2606.002525 | O178: 146522.7625 | P178: 0.2386898009 | Q178: 0.2386898009 | S178: 2606.002525 | T178: 4779 | U178: 4.446373142 | V178: 586.1
B179: 158 | C179: 2035-10-19 | D179: 5 | E179: 2035-10-19 | F179: 30 | G179: 4809 | H179: 146522.7625 | I179: 1205.375403 | J179: 1279.816816 | K179: 43.81030598 | L179: 77 | M179: 0 | N179: 2606.002525 | O179: 145317.3871 | P179: 0.2365528782 | Q179: 0.2365528782 | S179: 2606.002525 | T179: 4809 | U179: 4.488215899 | V179: 580.63
B180: 159 | C180: 2035-11-19 | D180: 1 | E180: 2035-11-19 | F180: 31 | G180: 4840 | H180: 145317.3871 | I180: 1172.315706 | J180: 1311.788366 | K180: 44.89845242 | L180: 77 | M180: 0 | N180: 2606.002525 | O180: 144145.0714 | P180: 0.2343648213 | Q180: 0.2343648213 | S180: 2606.002525 | T180: 4840 | U180: 4.531867127 | V180: 575.04
B181: 160 | C181: 2035-12-19 | D181: 3 | E181: 2035-12-19 | F181: 30 | G181: 4870 | H181: 144145.0714 | I181: 1226.854499 | J181: 1259.04865 | K181: 43.09937634 | L181: 77 | M181: 0 | N181: 2606.002525 | O181: 142918.2169 | P181: 0.232266619 | Q181: 0.232266619 | S181: 2606.002525 | T181: 4870 | U181: 4.574514427 | V181: 569.68
B182: 161 | C182: 2036-01-19 | D182: 6 | E182: 2036-01-19 | F182: 31 | G182: 4901 | H182: 142918.2169 | I182: 1194.71442 | J182: 1290.13092 | K182: 44.1571851 | L182: 77 | M182: 0 | N182: 2606.002525 | O182: 141723.5025 | P182: 0.230118209 | Q182: 0.230118209 | S182: 2606.002525 | T182: 4901 | U182: 4.619004973 | V182: 564.19
B183: 162 | C183: 2036-02-19 | D183: 2 | E183: 2036-02-19 | F183: 31 | G183: 4932 | H183: 141723.5025 | I183: 1205.868305 | J183: 1279.346164 | K183: 43.78805633 | L183: 77 | M183: 0 | N183: 2606.002525 | O183: 140517.6342 | P183: 0.2279896712 | Q183: 0.2279896712 | S183: 2606.002525 | T183: 4932 | U183: 4.663928221 | V183: 558.76
B184: 163 | C184: 2036-03-19 | D184: 3 | E184: 2036-03-19 | F184: 29 | G184: 4961 | H184: 140517.6342 | I184: 1302.108339 | J184: 1186.280108 | K184: 40.61407782 | L184: 77 | M184: 0 | N184: 2606.002525 | O184: 139215.5258 | P184: 0.2260162861 | Q184: 0.2260162861 | S184: 2606.002525 | T184: 4961 | U184: 4.706348653 | V184: 553.72
B185: 164 | C185: 2036-04-19 | D185: 6 | E185: 2036-04-19 | F185: 31 | G185: 4992 | H185: 139215.5258 | I185: 1229.282838 | J185: 1256.706515 | K185: 43.01317129 | L185: 77 | M185: 0 | N185: 2606.002525 | O185: 137986.243 | P185: 0.2239256901 | Q185: 0.2239256901 | S185: 2606.002525 | T185: 4992 | U185: 4.752121383 | V185: 548.39
B186: 165 | C186: 2036-05-19 | D186: 1 | E186: 2036-05-19 | F186: 30 | G186: 5022 | H186: 137986.243 | I186: 1282.490853 | J186: 1205.253786 | K186: 41.25788665 | L186: 77 | M186: 0 | N186: 2606.002525 | O186: 136703.7521 | P186: 0.2219209464 | Q186: 0.2219209464 | S186: 2606.002525 | T186: 5022 | U186: 4.796841395 | V186: 543.27
B187: 166 | C187: 2036-06-19 | D187: 4 | E187: 2036-06-19 | F187: 31 | G187: 5053 | H187: 136703.7521 | I187: 1252.732821 | J187: 1234.032591 | K187: 42.23711307 | L187: 77 | M187: 0 | N187: 2606.002525 | O187: 135451.0193 | P187: 0.2198682313 | Q187: 0.2198682313 | S187: 2606.002525 | T187: 5053 | U187: 4.843494235 | V187: 538.04
B188: 167 | C188: 2036-07-19 | D188: 6 | E188: 2036-07-19 | F188: 30 | G188: 5083 | H188: 135451.0193 | I188: 1305.393034 | J188: 1183.109637 | K188: 40.49985477 | L188: 77 | M188: 0 | N188: 2606.002525 | O188: 134145.6263 | P188: 0.2178998129 | Q188: 0.2178998129 | S188: 2606.002525 | T188: 5083 | U188: 4.889074114 | V188: 533.03
B189: 168 | C189: 2036-08-19 | D189: 2 | E189: 2036-08-19 | F189: 31 | G189: 5114 | H189: 134145.6263 | I189: 1276.615549 | J189: 1210.940242 | K189: 41.44673352 | L189: 77 | M189: 0 | N189: 2606.002525 | O189: 132869.0107 | P189: 0.2158842923 | Q189: 0.2158842923 | S189: 2606.002525 | T189: 5114 | U189: 4.936623985 | V189: 527.89
B190: 169 | C190: 2036-09-19 | D190: 5 | E190: 2036-09-19 | F190: 31 | G190: 5145 | H190: 132869.0107 | I190: 1288.534064 | J190: 1199.416161 | K190: 41.0522999 | L190: 77 | M190: 0 | N190: 2606.002525 | O190: 131580.4767 | P190: 0.2138874148 | Q190: 0.2138874148 | S190: 2606.002525 | T190: 5145 | U190: 4.984636314 | V190: 522.81
B191: 170 | C191: 2036-10-19 | D191: 7 | E191: 2036-10-20 | F191: 31 | G191: 5176 | H191: 131580.4767 | I191: 1300.563851 | J191: 1187.78449 | K191: 40.65418384 | L191: 77 | M191: 0 | N191: 2606.002525 | O191: 130279.9128 | P191: 0.211909008 | Q191: 0.211909008 | S191: 2606.002525 | T191: 5176 | U191: 5.033115599 | V191: 517.77
B192: 171 | C192: 2036-11-19 | D192: 3 | E192: 2036-11-19 | F192: 30 | G192: 5206 | H192: 130279.9128 | I192: 1352.106709 | J192: 1137.942122 | K192: 38.95369393 | L192: 77 | M192: 0 | N192: 2606.002525 | O192: 128927.8061 | P192: 0.2100118462 | Q192: 0.2100118462 | S192: 2606.002525 | T192: 5206 | U192: 5.080479917 | V192: 512.94
B193: 172 | C193: 2036-12-19 | D193: 5 | E193: 2036-12-19 | F193: 30 | G193: 5236 | H193: 128927.8061 | I193: 1364.321092 | J193: 1126.132019 | K193: 38.54941402 | L193: 77 | M193: 0 | N193: 2606.002525 | O193: 127563.485 | P193: 0.2081316693 | Q193: 0.2081316693 | S193: 2606.002525 | T193: 5236 | U193: 5.128289958 | V193: 508.16
B194: 173 | C194: 2037-01-19 | D194: 1 | E194: 2037-01-19 | F194: 31 | G194: 5267 | H194: 127563.485 | I194: 1338.066587 | J194: 1151.522876 | K194: 39.41306114 | L194: 77 | M194: 0 | N194: 2606.002525 | O194: 126225.4184 | P194: 0.2062065017 | Q194: 0.2062065017 | S194: 2606.002525 | T194: 5267 | U194: 5.178166381 | V194: 503.27
B195: 174 | C195: 2037-02-19 | D195: 4 | E195: 2037-02-19 | F195: 31 | G195: 5298 | H195: 126225.4184 | I195: 1350.558811 | J195: 1139.444073 | K195: 38.9996411 | L195: 77 | M195: 0 | N195: 2606.002525 | O195: 124874.8596 | P195: 0.2042991414 | Q195: 0.2042991414 | S195: 2606.002525 | T195: 5298 | U195: 5.228527889 | V195: 498.42
B196: 175 | C196: 2037-03-19 | D196: 4 | E196: 2037-03-19 | F196: 28 | G196: 5326 | H196: 124874.8596 | I196: 1476.434178 | J196: 1017.720283 | K196: 34.84806353 | L196: 77 | M196: 0 | N196: 2606.002525 | O196: 123398.4254 | P196: 0.2025915331 | Q196: 0.2025915331 | S196: 2606.002525 | T196: 5326 | U196: 5.274436567 | V196: 494.08
B197: 176 | C197: 2037-04-19 | D197: 7 | E197: 2037-04-20 | F197: 32 | G197: 5358 | H197: 123398.4254 | I197: 1339.621632 | J197: 1150.02463 | K197: 39.35626336 | L197: 77 | M197: 0 | N197: 2606.002525 | O197: 122058.8038 | P197: 0.2006574508 | Q197: 0.2006574508 | S197: 2606.002525 | T197: 5358 | U197: 5.327397423 | V197: 489.17
B198: 177 | C198: 2037-05-19 | D198: 2 | E198: 2037-05-19 | F198: 29 | G198: 5387 | H198: 122058.8038 | I198: 1463.276948 | J198: 1030.44669 | K198: 35.27888713 | L198: 77 | M198: 0 | N198: 2606.002525 | O198: 120595.5268 | P198: 0.1989206422 | Q198: 0.1989206422 | S198: 2606.002525 | T198: 5387 | U198: 5.375852392 | V198: 484.76
B199: 178 | C199: 2037-06-19 | D199: 5 | E199: 2037-06-19 | F199: 31 | G199: 5418 | H199: 120595.5268 | I199: 1403.119622 | J199: 1088.62272 | K199: 37.26018361 | L199: 77 | M199: 0 | N199: 2606.002525 | O199: 119192.4072 | P199: 0.1970806743 | Q199: 0.1970806743 | S199: 2606.002525 | T199: 5418 | U199: 5.428136543 | V199: 480.09
B200: 179 | C200: 2037-07-19 | D200: 7 | E200: 2037-07-20 | F200: 31 | G200: 5449 | H200: 119192.4072 | I200: 1416.219182 | J200: 1075.956679 | K200: 36.82666425 | L200: 77 | M200: 0 | N200: 2606.002525 | O200: 117776.188 | P200: 0.1952577257 | Q200: 0.1952577257 | S200: 2606.002525 | T200: 5449 | U200: 5.480929196 | V200: 475.47
B201: 180 | C201: 2037-08-19 | D201: 3 | E201: 2037-08-19 | F201: 30 | G201: 5479 | H201: 117776.188 | I201: 1465.06028 | J201: 1028.727165 | K201: 35.21508022 | L201: 77 | M201: 0 | N201: 2606.002525 | O201: 116311.1278 | P201: 0.1935096383 | Q201: 0.1935096383 | S201: 2606.002525 | T201: 5479 | U201: 5.53250768 | V201: 471.03
B202: 181 | C202: 2037-09-19 | D202: 6 | E202: 2037-09-19 | F202: 31 | G202: 5510 | H202: 116311.1278 | I202: 1443.118881 | J202: 1049.947204 | K202: 35.93644051 | L202: 77 | M202: 0 | N202: 2606.002525 | O202: 114868.0089 | P202: 0.1917197209 | Q202: 0.1917197209 | S202: 2606.002525 | T202: 5510 | U202: 5.58631542 | V202: 466.5
B203: 182 | C203: 2037-10-19 | D203: 1 | E203: 2037-10-19 | F203: 30 | G203: 5540 | H203: 114868.0089 | I203: 1491.331589 | J203: 1003.325401 | K203: 34.34553466 | L203: 77 | M203: 0 | N203: 2606.002525 | O203: 113376.6773 | P203: 0.1900033082 | Q203: 0.1900033082 | S203: 2606.002525 | T203: 5540 | U203: 5.638885645 | V203: 462.15
B204: 183 | C204: 2037-11-19 | D204: 4 | E204: 2037-11-19 | F204: 31 | G204: 5571 | H204: 113376.6773 | I204: 1470.514985 | J204: 1023.457752 | K204: 35.02978861 | L204: 77 | M204: 0 | N204: 2606.002525 | O204: 111906.1623 | P204: 0.1882458235 | Q204: 0.1882458235 | S204: 2606.002525 | T204: 5571 | U204: 5.693727989 | V204: 457.7
B205: 184 | C205: 2037-12-19 | D205: 6 | E205: 2037-12-19 | F205: 30 | G205: 5601 | H205: 111906.1623 | I205: 1518.087708 | J205: 977.4548741 | K205: 33.45994253 | L205: 77 | M205: 0 | N205: 2606.002525 | O205: 110388.0746 | P205: 0.1865605117 | Q205: 0.1865605117 | S205: 2606.002525 | T205: 5601 | U205: 5.747309024 | V205: 453.43
B206: 185 | C206: 2038-01-19 | D206: 2 | E206: 2038-01-19 | F206: 31 | G206: 5632 | H206: 110388.0746 | I206: 1498.416655 | J206: 996.4794642 | K206: 34.10640539 | L206: 77 | M206: 0 | N206: 2606.002525 | O206: 108889.6579 | P206: 0.184834872 | Q206: 0.184834872 | S206: 2606.002525 | T206: 5632 | U206: 5.803205866 | V206: 449.06
B207: 186 | C207: 2038-02-19 | D207: 5 | E207: 2038-02-19 | F207: 31 | G207: 5663 | H207: 108889.6579 | I207: 1512.405911 | J207: 982.9531714 | K207: 33.64344229 | L207: 77 | M207: 0 | N207: 2606.002525 | O207: 107377.252 | P207: 0.1831251942 | Q207: 0.1831251942 | S207: 2606.002525 | T207: 5663 | U207: 5.859646347 | V207: 444.74
... 176 more rows
